bitfinex/quotes_SOLUSD_20220117
["timestamp","ask_amount","ask_price","bid_price","bid_amount"]
[1642387469881,41.20297391,145.14,145.06,22.8962]
[1642387470281,47.20297391,145.14,145.06,22.8962]
[1642387470484,51.54127391,145.14,145.06,22.8962]
[1642387471383,57.54127391,145.14,145.06,22.8962]
[1642387471783,51.54127391,145.14,145.06,22.8962]
[1642387473787,0.25,145.14,145.06,22.8962]
[1642387473987,0.25,145.14,145.07,0.26]
[1642387474190,23.7841,145.15,145.07,0.26]
[1642387474787,68.37448962,145.15,145.07,0.26]
[1642387479795,68.12448962,145.15,145.07,0.26]
[1642387480025,44.59038962,145.15,145.07,0.26]
[1642387480423,5.61038989,145.16,145.07,0.26]
[1642387480723,1.70077588,145.16,145.07,0.26]
[1642387481126,1.95077588,145.16,145.07,0.26]
[1642387481424,1.70077588,145.16,145.07,0.26]
[1642387481625,40.82680894,145.16,145.07,0.26]
[1642387482528,40.82680894,145.16,145.07,10.596]
[1642387482727,1.95077588,145.16,145.08,45.99962464]
[1642387483029,1.95077588,145.16,145.09,24.2863]
[1642387483426,1.95077588,145.16,145.09,24.5363]
[1642387483630,3.90961401,145.18,145.09,34.8708]
[1642387483826,3.90961401,145.18,145.1,0.26]
[1642387484028,3.90961401,145.19,145.1,0.26]
[1642387484728,3.90961401,145.19,145.11,10.3332]
[1642387484930,39.12023171,145.2,145.13,45.97165584]
[1642387485129,1.30591972,145.2,145.13,45.97165584]
[1642387485331,3.90961401,145.21,145.14,0.26]
[1642387485734,3.90961401,145.21,145.14,23.6844]
[1642387485933,3.90961401,145.21,145.14,23.9344]
[1642387486136,1.96295919,145.18,145.14,23.9344]
[1642387487233,1.96295919,145.19,145.14,23.9344]
[1642387489434,42.56555398,145.18,145.14,23.9344]
[1642387489633,42.56555398,145.18,145.14,23.4244]
[1642387489832,42.81555398,145.18,145.11,10.3331]
[1642387490034,42.81555398,145.18,145.11,10.5831]
[1642387490636,44.77851317,145.18,145.11,24.9489]
[1642387490836,50.77851317,145.18,145.11,24.9489]
[1642387491536,44.77851317,145.18,145.11,24.6989]
[1642387492436,1.96295919,145.17,145.11,24.6989]
[1642387492838,1.96295919,145.17,145.12,38.9160545]
[1642387493036,1.96295919,145.17,145.12,39.1660545]
[1642387494038,1.96295919,145.19,145.12,39.1660545]
[1642387495436,1.96295919,145.19,145.12,49.4983545]
[1642387495639,37.70828468,145.2,145.12,49.4983545]
[1642387496038,37.95828468,145.2,145.12,49.4983545]
[1642387496441,1.96295919,145.19,145.12,49.4983545]
[1642387496838,2.21295919,145.19,145.12,49.4983545]
[1642387497540,2.21295919,145.19,145.12,10.5823]
[1642387498244,2.21295919,145.19,145.12,0.25]
[1642387498440,2.21295919,145.19,145.12,0.26]
[1642387500445,1.96295919,145.19,145.12,0.26]
[1642387500953,1.96295919,145.19,145.13,9.93]
[1642387501347,1.96295919,145.19,145.13,16.18]
[1642387501552,39.15589794,145.22,145.14,47.15607999]
[1642387501748,39.15589794,145.22,145.15,22.9819]
[1642387502049,39.15589794,145.22,145.15,23.2319]
[1642387502246,39.40589794,145.22,145.15,23.2319]
[1642387503449,38.90589794,145.22,145.15,23.2319]
[1642387504851,38.90589794,145.22,145.15,29.2319]
[1642387505751,38.65589794,145.22,145.15,29.2319]
[1642387507382,38.65589794,145.22,145.15,78.5088684]
[1642387507781,38.65589794,145.22,145.15,72.5088684]
[1642387508185,1.96295919,145.23,145.15,78.5088684]
[1642387508382,1.96295919,145.23,145.16,0.26]
[1642387509186,0.17297881,145.2,145.16,0.26]
[1642387509384,0.17297881,145.2,145.16,10.5896]
[1642387509583,0.34595762,145.2,145.16,10.5896]
[1642387509785,0.34595762,145.2,145.16,10.8396]
[1642387509985,0.34595762,145.2,145.16,16.8396]
[1642387510185,0.34595762,145.2,145.16,10.8396]
[1642387511789,0.34595762,145.2,145.16,16.8396]
[1642387512187,0.34595762,145.2,145.17,24.0435]
[1642387512388,0.34595762,145.2,145.18,10.5876]
[1642387512586,0.34595762,145.2,145.19,6.06439994]
[1642387512987,0.34595762,145.2,145.19,50.52177868]
[1642387514192,0.34595762,145.2,145.19,56.52177868]
[1642387514792,0.34595762,145.2,145.19,50.52177868]
[1642387515195,0.34595762,145.2,145.19,6.06439994]
[1642387515394,0.34595762,145.2,145.17,24.0435]
[1642387515593,0.34595762,145.2,145.17,30.2935]
[1642387515795,41.32099577,145.25,145.18,6.06439994]
[1642387516001,0.17297881,145.21,145.18,6.06439994]
[1642387516194,0.34595762,145.21,145.18,6.06439994]
[1642387517992,0.34595762,145.21,145.19,42.18712372]
[1642387518393,0.34595762,145.21,145.19,42.43712372]
[1642387518794,0.34595762,145.21,145.2,6.06439994]
[1642387521100,50.36807832,145.25,145.2,6.06439994]
[1642387521301,0.17297881,145.22,145.2,6.06439994]
[1642387521501,0.34595762,145.22,145.2,6.06439994]
[1642387526402,2.21295919,145.25,145.2,6.06439994]
[1642387526604,0.17297881,145.22,145.2,6.06439994]
[1642387526801,0.34595762,145.22,145.2,6.31439994]
[1642387528304,0.34595762,145.22,145.2,16.64139994]
[1642387528805,0.34595762,145.22,145.2,6.31439994]
[1642387531610,0.17297881,145.22,145.2,6.31439994]
[1642387532011,0.17297881,145.21,145.2,44.31439994]
[1642387532437,0.17297881,145.21,145.2,44.57439994]
[1642387532634,0.00297881,145.21,145.2,50.57439994]
[1642387532837,0.00297881,145.21,145.2,60.50439994]
[1642387533036,0.00297881,145.21,145.2,122.50439994]
[1642387534335,0.00297881,145.21,145.2,60.50439994]
[1642387537038,0.17297881,145.24,145.2,22.50439994]
[1642387537242,0.17297881,145.24,145.2,16.24439994]
[1642387537441,43.80789275,145.27,145.2,6.06439994]
[1642387537642,0.17297881,145.22,145.2,6.06439994]
[1642387538243,0.17297881,145.22,145.2,54.98715751]
[1642387538842,0.17297881,145.22,145.21,63.6196]
[1642387539249,0.17297881,145.22,145.21,69.8696]
[1642387541346,0.17297881,145.22,145.21,29.8696]
[1642387543849,0.17297881,145.22,145.21,76.8696]
[1642387544150,0.17297881,145.22,145.21,29.8696]
[1642387546853,0.17297881,145.22,145.21,64.8696]
[1642387547254,0.00297881,145.22,145.21,64.8696]
[1642387547453,1.96295919,145.29,145.21,64.8696]
[1642387547653,1.96295919,145.29,145.22,10.3252]
[1642387547853,1.96295919,145.29,145.22,10.5752]
[1642387548353,1.96295919,145.29,145.23,40.91450271]
[1642387548555,1.96295919,145.29,145.23,51.23930271]
[1642387548755,1.96295919,145.3,145.23,57.48930271]
[1642387548956,1.96295919,145.3,145.24,22.7116]
[1642387549357,42.20880624,145.3,145.24,22.9616]
[1642387550561,42.20880624,145.3,145.25,10.3235]
[1642387550961,1.96295919,145.32,145.25,10.5735]
[1642387551360,2.21295919,145.32,145.25,10.5735]
[1642387551962,36.73542013,145.31,145.25,10.5735]
[1642387552363,36.98542013,145.31,145.25,10.5735]
[1642387554162,38.94837932,145.31,145.25,10.5735]
[1642387554363,2.21295919,145.31,145.25,10.5735]
[1642387555366,43.02993456,145.3,145.25,10.5735]
[1642387557370,43.02993456,145.3,145.25,0.25]
[1642387557571,43.02993456,145.3,145.24,22.9616]
[1642387559372,43.02993456,145.3,145.24,33.2858]
[1642387559576,2.21295919,145.31,145.24,33.2858]
[1642387559773,2.21295919,145.31,145.24,39.2858]
[1642387560573,48.930926,145.31,145.24,39.2858]
[1642387561977,1.96295919,145.3,145.24,39.2858]
[1642387562378,1.96295919,145.3,145.24,33.2858]
[1642387562778,1.96295919,145.3,145.24,39.2858]
[1642387563179,1.96295919,145.3,145.24,33.2858]
[1642387563579,37.88821809,145.3,145.24,33.2858]
[1642387563979,35.9252589,145.3,145.24,33.2858]
[1642387565892,37.88821809,145.3,145.24,33.2858]
[1642387566422,35.9252589,145.3,145.24,33.2858]
[1642387566620,1.96295919,145.31,145.24,33.2858]
[1642387567622,37.02318796,145.31,145.24,33.2858]
[1642387568622,1.96295919,145.31,145.24,33.2858]
[1642387569522,48.55401911,145.3,145.24,33.2858]
[1642387570123,48.55401911,145.3,145.24,39.2858]
[1642387570325,48.55401911,145.3,145.24,33.2858]
[1642387571425,1.96295919,145.32,145.24,33.2858]
[1642387571625,1.96295919,145.32,145.24,39.2858]
[1642387571826,1.96295919,145.32,145.24,33.2858]
[1642387572226,1.96295919,145.32,145.24,39.0358]
[1642387572428,1.96295919,145.32,145.24,28.7116]
[1642387572627,1.96295919,145.32,145.24,22.7116]
[1642387572828,2.21295919,145.32,145.24,22.7116]
[1642387573228,41.53291751,145.31,145.24,22.7116]
[1642387573431,1.96295919,145.3,145.24,22.7116]
[1642387573629,1.96295919,145.3,145.24,22.9616]
[1642387573830,2.21295919,145.3,145.24,22.9616]
[1642387574028,2.21295919,145.3,145.24,33.2858]
[1642387575634,0.25,145.3,145.24,33.2858]
[1642387575833,43.7458767,145.31,145.24,33.2858]
[1642387576240,43.7458767,145.31,145.24,0.25]
[1642387576433,22.6437,145.3,145.21,22.5023]
[1642387576634,30.60665919,145.3,145.21,22.5023]
[1642387576835,30.85665919,145.3,145.21,22.5023]
[1642387577463,41.18395919,145.3,145.21,22.5023]
[1642387577868,41.18395919,145.3,145.21,22.7523]
[1642387578265,37.61612239,145.28,145.21,22.7523]
[1642387581768,37.61612239,145.28,145.21,33.0786]
[1642387582167,1.96295919,145.29,145.21,33.0786]
[1642387582368,1.96295919,145.29,145.22,0.26]
[1642387583468,1.96295919,145.29,145.24,48.34851114]
[1642387583869,1.96295919,145.29,145.24,48.59851114]
[1642387584069,63.1300618,145.3,145.24,48.59851114]
[1642387584269,22.8937,145.3,145.24,48.59851114]
[1642387584668,22.8937,145.3,145.24,48.09851114]
[1642387585070,22.8937,145.3,145.24,47.84851114]
[1642387585270,63.42727091,145.3,145.24,47.84851114]
[1642387585572,63.42727091,145.3,145.23,10.325]
[1642387586378,24.60665919,145.3,145.24,43.14312665]
[1642387586771,24.60665919,145.3,145.24,43.39312665]
[1642387587274,22.6437,145.3,145.24,43.39312665]
[1642387587971,22.8937,145.3,145.24,43.39312665]
[1642387588974,22.8937,145.3,145.24,0.25]
[1642387589175,22.8937,145.3,145.23,10.575]
[1642387589473,22.8937,145.3,145.21,38.8283]
[1642387589676,22.8937,145.3,145.21,33.0783]
[1642387590173,28.8937,145.3,145.21,33.0783]
[1642387590376,1.96295919,145.29,145.21,33.0783]
[1642387590576,36.43015741,145.28,145.21,33.0783]
[1642387592775,36.43015741,145.28,145.21,10.576]
[1642387592975,38.3931166,145.28,145.21,0.25]
[1642387593476,38.3931166,145.28,145.19,16.5775]
[1642387593880,38.3931166,145.28,145.2,24.1792]
[1642387594277,38.3931166,145.28,145.2,24.4292]
[1642387594480,48.7218166,145.28,145.2,24.4292]
[1642387594879,48.9718166,145.28,145.2,24.1792]
[1642387595078,48.9718166,145.28,145.17,49.4766395]
[1642387595079,119.21259248,145.28,145.17,49.4766395]
[1642387595281,24.8642,145.27,145.18,24.1091]
[1642387595678,25.1142,145.27,145.18,30.1091]
[1642387596178,25.1142,145.27,145.18,24.1091]
[1642387596378,12.29285919,145.26,145.18,24.1091]
[1642387596780,12.54285919,145.26,145.18,24.1091]
[1642387596980,1.96295919,145.26,145.18,24.3591]
[1642387597177,1.96295919,145.26,145.18,30.3591]
[1642387597780,1.96295919,145.26,145.19,10.5873]
[1642387597979,1.96295919,145.26,145.19,10.8373]
[1642387598180,1.96295919,145.26,145.2,42.30779934]
[1642387598379,62.62003163,145.27,145.2,42.55779934]
[1642387598779,62.87003163,145.27,145.2,42.55779934]
[1642387602283,25.1142,145.27,145.2,42.55779934]
[1642387602485,25.1142,145.27,145.2,48.55779934]
[1642387602685,1.96295919,145.28,145.2,77.64719934]
[1642387602885,1.96295919,145.28,145.21,0.26]
[1642387603087,1.96295919,145.28,145.21,8.037]
[1642387603485,1.96295919,145.28,145.23,45.69244248]
[1642387603985,1.96295919,145.28,145.23,45.94244248]
[1642387604185,1.96295919,145.28,145.23,56.26684248]
[1642387604388,1.96295919,145.31,145.23,56.26684248]
[1642387604586,1.96295919,145.31,145.24,24.199]
[1642387604791,2.21295919,145.31,145.24,24.449]
[1642387604986,1.96295919,145.31,145.24,24.449]
[1642387605385,47.92910614,145.3,145.24,24.449]
[1642387608089,47.92910614,145.3,145.23,10.3244]
[1642387608289,54.17910614,145.3,145.21,10.3258]
[1642387608692,56.14206533,145.3,145.21,10.3258]
[1642387608992,56.14206533,145.3,145.21,41.44518765]
[1642387609192,56.14206533,145.3,145.22,24.3261]
[1642387609393,56.14206533,145.3,145.22,24.5761]
[1642387609594,1.96295919,145.29,145.22,24.5761]
[1642387609995,2.21295919,145.29,145.22,24.5761]
[1642387610792,0.25,145.29,145.22,24.5761]
[1642387611194,50.14206533,145.3,145.22,24.5761]
[1642387611693,1.96295919,145.29,145.22,24.5761]
[1642387611893,2.21295919,145.29,145.22,24.5761]
[1642387612395,0.25,145.29,145.22,24.5761]
[1642387613194,50.14206533,145.3,145.22,24.5761]
[1642387616099,49.89206533,145.3,145.21,51.77108765]
[1642387616301,1.96295919,145.29,145.21,51.77108765]
[1642387617102,73.08056533,145.3,145.21,51.77108765]
[1642387617602,25.15145919,145.3,145.22,22.7777]
[1642387617801,25.15145919,145.3,145.22,23.0377]
[1642387618002,25.15145919,145.3,145.22,23.2877]
[1642387618601,65.0163168,145.3,145.22,23.2877]
[1642387620204,65.2663168,145.3,145.22,23.2877]
[1642387621204,65.2663168,145.3,145.22,0.51]
[1642387621406,75.5935168,145.3,145.21,6.25]
[1642387621603,11.63077588,145.29,145.19,53.7775]
[1642387622004,11.88077588,145.29,145.19,47.7775]
[1642387622406,38.95244966,145.27,145.19,95.30150821]
[1642387622803,38.95244966,145.27,145.19,95.55150821]
[1642387623303,38.95244966,145.27,145.19,48.0275]
[1642387624404,38.95244966,145.27,145.19,84.11196574]
[1642387624606,38.95244966,145.27,145.19,60.72926574]
[1642387624807,39.20244966,145.27,145.19,60.72926574]
[1642387625809,41.16540885,145.27,145.19,60.72926574]
[1642387627836,40.91540885,145.27,145.19,60.72926574]
[1642387628433,1.96295919,145.27,145.19,60.72926574]
[1642387628633,36.80315919,145.28,145.19,60.72926574]
[1642387630037,26.47455919,145.28,145.19,60.72926574]
[1642387631136,36.80315919,145.28,145.19,60.72926574]
[1642387631535,36.80315919,145.28,145.19,24.6448]
[1642387631739,48.43393507,145.28,145.19,24.6448]
[1642387631937,54.43393507,145.28,145.19,24.6448]
[1642387632137,54.43393507,145.28,145.19,24.3948]
[1642387632339,54.68393507,145.28,145.19,24.3948]
[1642387632739,40.55265142,145.26,145.19,24.3948]
[1642387632941,40.80265142,145.26,145.19,24.3948]
[1642387633340,40.80265142,145.26,145.19,24.6448]
[1642387640349,40.80265142,145.26,145.19,30.6448]
[1642387640853,40.80265142,145.26,145.19,24.6448]
[1642387642052,42.76561061,145.26,145.19,24.6448]
[1642387642352,53.09551061,145.26,145.16,1.1677797]
[1642387642553,24.8441,145.25,145.16,24.6344797]
[1642387642755,24.8441,145.25,145.16,24.8844797]
[1642387642951,25.0941,145.25,145.16,24.6344797]
[1642387643153,26.79487588,145.25,145.16,1.1677797]
[1642387643456,10.3339,145.22,145.16,1.1677797]
[1642387643853,10.5839,145.22,145.16,1.1677797]
[1642387646454,10.5839,145.22,145.17,36.89541284]
[1642387646854,10.5839,145.22,145.16,1.1677797]
[1642387649357,10.5839,145.22,145.17,44.64212258]
[1642387649759,25.75015919,145.23,145.17,44.89212258]
[1642387650160,22.22445919,145.24,145.17,44.89212258]
[1642387650865,11.89295919,145.24,145.17,44.89212258]
[1642387651068,9.93,145.24,145.17,44.89212258]
[1642387651662,10.18,145.24,145.17,44.89212258]
[1642387652491,10.18,145.24,145.17,0.25]
[1642387652665,34.8289,145.24,145.16,1.4177797]
[1642387653866,45.1604,145.24,145.16,24.2747797]
[1642387654070,46.86117588,145.24,145.16,24.2747797]
[1642387654266,46.86117588,145.24,145.16,1.4177797]
[1642387654467,45.1604,145.24,145.16,1.1677797]
[1642387654667,46.86117588,145.24,145.16,1.1677797]
[1642387655668,1.96295919,145.23,145.16,1.1677797]
[1642387655868,10.3335,145.21,145.16,1.1677797]
[1642387656372,10.5835,145.21,145.16,1.1677797]
[1642387659997,0.25,145.21,145.16,1.1677797]
[1642387660173,20.2621,145.23,145.16,1.4177797]
[1642387660371,9.93,145.23,145.16,1.4177797]
[1642387660800,9.93,145.23,145.16,30.3523797]
[1642387660973,10.18,145.23,145.16,24.3523797]
[1642387661375,10.18,145.23,145.16,30.3523797]
[1642387661573,10.18,145.23,145.16,24.3523797]
[1642387661776,9.93,145.23,145.16,24.3523797]
[1642387663478,37.41452357,145.25,145.16,24.3523797]
[1642387663877,37.41452357,145.25,145.16,30.3523797]
[1642387664077,37.41452357,145.25,145.16,24.3523797]
[1642387664480,3.40912357,145.25,145.16,30.3523797]
[1642387664678,3.65912357,145.25,145.16,30.3523797]
[1642387665480,3.65912357,145.25,145.17,0.26]
[1642387665986,1.69616438,145.25,145.17,0.26]
[1642387666887,3.65912357,145.25,145.17,0.26]
[1642387668710,3.40912357,145.25,145.17,0.26]
[1642387669415,1.44616438,145.25,145.17,0.26]
[1642387669612,1.96295919,145.26,145.17,0.26]
[1642387669813,1.96295919,145.26,145.17,68.8]
[1642387670014,1.96295919,145.26,145.18,47.71854861]
[1642387670214,1.96295919,145.27,145.19,24.2567]
[1642387670418,1.96295919,145.27,145.19,30.9297]
[1642387670614,1.96295919,145.27,145.19,36.9297]
[1642387671212,38.3187942,145.28,145.19,36.9297]
[1642387671415,38.3187942,145.28,145.19,47.2566]
[1642387673816,11.89295919,145.3,145.19,47.2566]
[1642387674623,12.14295919,145.3,145.19,47.2566]
[1642387674818,55.3392094,145.3,145.19,47.2566]
[1642387676416,53.37625021,145.3,145.19,47.2566]
[1642387678319,53.37625021,145.3,145.19,115.7966]
[1642387679521,53.37625021,145.3,145.19,126.2364]
[1642387681026,43.44625021,145.3,145.19,126.2364]
[1642387684939,43.44625021,145.3,145.19,136.1664]
[1642387685440,43.44625021,145.3,145.19,67.3664]
[1642387685841,43.44625021,145.3,145.19,61.3664]
[1642387686842,43.44625021,145.3,145.2,0.26]
[1642387687045,43.44625021,145.3,145.21,10.3256]
[1642387687245,43.44625021,145.3,145.22,22.8358]
[1642387687444,43.44625021,145.3,145.22,67.38748716]
[1642387688244,43.44625021,145.3,145.22,29.3458]
[1642387690145,0.25,145.3,145.22,29.3458]
[1642387690346,45.0884,145.31,145.22,29.3458]
[1642387690745,36.72485919,145.31,145.22,29.3458]
[1642387690944,26.79485919,145.31,145.22,29.3458]
[1642387691154,68.47616427,145.31,145.22,29.3458]
[1642387691347,26.79485919,145.31,145.22,39.6706]
[1642387691545,24.8319,145.31,145.22,39.6706]
[1642387694986,26.79485919,145.31,145.22,39.6706]
[1642387696088,26.79485919,145.31,145.22,108.2106]
[1642387697087,24.8319,145.31,145.22,108.2106]
[1642387697286,0.25,145.31,145.22,108.2106]
[1642387697686,2.21295919,145.32,145.22,108.2106]
[1642387698185,1.96295919,145.31,145.22,108.2106]
[1642387698587,1.96295919,145.32,145.22,108.2106]
[1642387701889,1.96295919,145.32,145.22,39.1606]
[1642387702089,2.21295919,145.32,145.22,39.1606]
[1642387702490,39.65788934,145.31,145.22,39.1606]
[1642387702889,39.90788934,145.31,145.22,39.1606]
[1642387703294,39.90788934,145.31,145.22,39.4106]
[1642387703494,41.87084853,145.31,145.22,39.4106]
[1642387703694,41.87084853,145.31,145.23,0.26]
[1642387705095,41.87084853,145.31,145.22,39.4106]
[1642387705294,2.21295919,145.31,145.22,39.4106]
[1642387705494,1.96295919,145.31,145.22,107.9506]
[1642387706298,25.68065919,145.33,145.23,0.26]
[1642387706601,25.68065919,145.33,145.25,39.64299774]
[1642387706797,25.68065919,145.33,145.26,22.704]
[1642387707205,25.68065919,145.33,145.26,22.954]
[1642387707899,25.93065919,145.33,145.26,22.954]
[1642387708100,24.42975145,145.33,145.26,22.954]
[1642387708301,1.96295919,145.32,145.26,22.954]
[1642387708901,1.96295919,145.32,145.27,0.26]
[1642387709901,43.03177754,145.35,145.28,37.1380419]
[1642387710301,43.03177754,145.35,145.29,0.26]
[1642387711611,41.06881835,145.35,145.29,0.26]
[1642387715211,1.33351582,145.35,145.29,0.26]
[1642387715613,1.33351582,145.35,145.29,24.5206]
[1642387715812,1.33351582,145.35,145.29,24.7706]
[1642387716017,1.33351582,145.35,145.29,30.7706]
[1642387716612,39.65369884,145.35,145.29,30.7706]
[1642387719417,39.65369884,145.35,145.29,24.5206]
[1642387720842,39.65369884,145.35,145.29,24.7706]
[1642387721643,39.65369884,145.35,145.29,30.7706]
[1642387721844,39.65369884,145.35,145.29,24.7706]
[1642387723146,1.33351582,145.35,145.29,24.7706]
[1642387723344,1.33351582,145.35,145.29,30.7706]
[1642387723548,1.33351582,145.35,145.29,24.7706]
[1642387726848,22.9257,145.36,145.29,41.0906]
[1642387727048,1.96295919,145.37,145.29,47.2236]
[1642387727449,1.96295919,145.37,145.29,57.1536]
[1642387728852,1.96295919,145.37,145.31,39.60115122]
[1642387729050,25.92775919,145.4,145.32,33.2501]
[1642387729252,25.92775919,145.4,145.32,33.5101]
[1642387729450,25.92775919,145.4,145.32,39.7601]
[1642387729650,25.92775919,145.4,145.32,33.7601]
[1642387730058,23.9648,145.4,145.32,33.7601]
[1642387730953,23.9648,145.4,145.32,39.7601]
[1642387736858,23.9648,145.4,145.32,39.5101]
[1642387737759,23.9648,145.4,145.32,108.0501]
[1642387737959,25.92775919,145.4,145.32,118.4074]
[1642387738361,25.92775919,145.4,145.32,118.6574]
[1642387738793,23.9648,145.4,145.32,118.6574]
[1642387741101,23.9648,145.4,145.32,50.1174]
[1642387742198,23.9648,145.4,145.32,49.8574]
[1642387744101,23.9648,145.4,145.32,49.6074]
[1642387744900,23.9648,145.4,145.33,0.26]
[1642387745101,25.92775919,145.4,145.33,0.26]
[1642387753010,1.96295919,145.39,145.33,0.26]
[1642387759417,1.96295919,145.39,145.33,79.117]
[1642387759620,1.96295919,145.39,145.34,23.3704]
[1642387759814,1.96295919,145.39,145.35,0.26]
[1642387760414,1.96295919,145.39,145.35,10.575]
[1642387760616,3.90961401,145.42,145.35,10.575]
[1642387760817,50.77134753,145.43,145.35,6.25]
[1642387761216,51.02134753,145.43,145.35,6.25]
[1642387761615,51.02134753,145.43,145.35,44.18654749]
[1642387761815,1.42288649,145.45,145.36,68.8]
[1642387761816,1.46295919,145.41,145.36,68.8]
[1642387762016,3.90961401,145.45,145.39,49.0]
[1642387762220,3.90961401,145.45,145.39,56.36]
[1642387762419,3.90961401,145.45,145.4,0.26]
[1642387762617,26.74871401,145.49,145.4,0.26]
[1642387762816,26.74871401,145.49,145.4,72.20089936]
[1642387763215,32.74871401,145.49,145.4,78.45089936]
[1642387763419,32.74871401,145.49,145.41,10.3113]
[1642387763918,28.8391,145.49,145.42,0.26]
[1642387764121,28.8391,145.49,145.43,35.55728739]
[1642387764319,22.8391,145.49,145.44,0.26]
[1642387764620,3.90961401,145.52,145.45,10.3089]
[1642387764821,3.90961401,145.52,145.46,0.26]
[1642387765219,3.90961401,145.52,145.46,39.40035989]
[1642387765424,3.90961401,145.52,145.46,45.65035989]
[1642387765619,3.90961401,145.52,145.46,55.95865989]
[1642387766220,23.0855,145.55,145.46,55.95865989]
[1642387766419,29.0855,145.55,145.46,79.64435989]
[1642387766821,29.0855,145.55,145.46,89.57435989]
[1642387769022,29.0855,145.55,145.46,83.57435989]
[1642387769422,29.0855,145.55,145.46,44.434]
[1642387769822,39.6448,145.55,145.46,10.18]
[1642387770025,68.54,145.54,145.46,0.25]
[1642387770223,68.79,145.54,145.43,24.2232]
[1642387770424,37.73314786,145.53,145.44,49.10322155]
[1642387770625,37.73314786,145.53,145.43,0.25]
[1642387770827,35.93111588,145.52,145.43,0.25]
[1642387771028,23.91844,145.52,145.4,44.5465]
[1642387771228,24.16844,145.52,145.42,0.26]
[1642387771432,24.16844,145.52,145.41,23.3988]
[1642387771626,24.16844,145.52,145.42,42.73315277]
[1642387771823,24.16844,145.52,145.43,23.1141]
[1642387772227,24.16844,145.52,145.43,23.3641]
[1642387772852,24.16844,145.52,145.43,33.4143]
[1642387773051,24.16844,145.52,145.43,23.1041]
[1642387774251,34.47994,145.52,145.43,23.1041]
[1642387774753,34.47994,145.52,145.43,29.1041]
[1642387776061,34.47994,145.52,145.43,23.1041]
[1642387776855,34.47994,145.52,145.43,29.1041]
[1642387777056,34.47994,145.52,145.43,23.1041]
[1642387779957,34.47994,145.52,145.43,29.1041]
[1642387780157,68.54,145.49,145.3,456.13323894]
[1642387780357,10.3174,145.44,145.3,448.95430626]
[1642387780559,9.93,145.43,145.3,448.95430626]
[1642387780756,93.86105776,145.43,145.3,448.95430626]
[1642387780959,93.86105776,145.43,145.31,35.57880516]
[1642387780960,37.74503632,145.42,145.31,35.57880516]
[1642387781158,9.93,145.41,145.31,35.57880516]
[1642387781358,16.18,145.41,145.31,35.57880516]
[1642387781963,34.51220993,145.41,145.31,35.57880516]
[1642387782559,34.51220993,145.41,145.31,35.82880516]
[1642387783661,34.51220993,145.41,145.31,35.57880516]
[1642387783861,116.74249181,145.41,145.31,35.57880516]
[1642387784061,131.40129463,145.41,145.31,35.57880516]
[1642387784261,62.86129463,145.41,145.31,35.57880516]
[1642387784961,47.47023687,145.41,145.31,35.57880516]
[1642387785363,9.93,145.41,145.32,0.26]
[1642387787563,10.18,145.41,145.32,0.26]
[1642387790372,9.93,145.41,145.32,0.26]
[1642387797585,10.316,145.46,145.33,101.0]
[1642387797882,9.93,145.45,145.34,44.61301657]
[1642387798080,9.93,145.44,145.35,22.7086]
[1642387798481,9.93,145.44,145.36,0.26]
[1642387798680,9.93,145.44,145.36,8.278]
[1642387798883,9.93,145.44,145.37,41.18267206]
[1642387799279,9.93,145.44,145.38,0.26]
[1642387800380,24.4266,145.49,145.38,6.688]
[1642387800583,9.93,145.51,145.38,6.688]
[1642387800781,9.93,145.51,145.39,24.735]
[1642387801182,9.93,145.51,145.4,0.26]
[1642387801381,59.52423882,145.51,145.4,40.25041673]
[1642387801780,59.52423882,145.51,145.4,46.50041673]
[1642387802380,59.77423882,145.51,145.4,46.50041673]
[1642387806412,10.3116,145.52,145.4,123.55941673]
[1642387806616,22.9318,145.53,145.4,123.55941673]
[1642387806812,22.9318,145.53,145.41,22.6504]
[1642387807011,23.1818,145.53,145.41,22.6504]
[1642387807216,23.1818,145.53,145.42,0.26]
[1642387807412,40.36941974,145.52,145.42,0.26]
[1642387807711,10.80701283,145.57,145.44,68.54]
[1642387807712,3.90961401,145.57,145.44,68.54]
[1642387807913,3.90961401,145.57,145.45,34.4573]